fUSD/lending_fUSD_20240521
["ID","MTS","AMOUNT","RATE_DAILY","PERIOD"]
[327685026,1716315069142,-642.17,0.00030958,6]
[327685027,1716315069152,-1743.19,0.00030958,6]
[327685028,1716315069162,-1869.29,0.00030958,6]
[327685029,1716315069172,-500.0,0.00030958,6]
[327685030,1716315069181,-19266.86,0.00030958,6]
[327685031,1716315069192,-500.0,0.00030958,6]
[327685032,1716315069202,-500.0,0.00030958,6]
[327685033,1716315069212,-717.11,0.00030958,6]
[327685034,1716315069221,-752.29,0.00030958,6]
[327685035,1716315069231,-3154.93,0.00030958,6]
[327685036,1716315069241,-500.0,0.00030958,6]
[327685037,1716315069250,-260.87,0.00030958,6]
[327685038,1716315069260,-3389.38,0.00030958,6]
[327685039,1716315069269,-1952.68,0.00030958,6]
[327685040,1716315069279,-500.0,0.00030958,6]
[327685041,1716315069289,-500.0,0.00030958,6]
[327685042,1716315069299,-3123.41,0.00030958,6]
[327685043,1716315069310,-1493.22,0.00030958,6]
[327685044,1716315069320,-151.0,0.00030958,7]
[327685045,1716315069330,-500.0,0.00030958,6]
[327685046,1716315069340,-809.31,0.00030958,6]
[327685047,1716315069349,-151.0,0.00030958,7]
[327685048,1716315069359,-151.0,0.00030958,7]
[327685049,1716315069369,-2003.05,0.00030958,6]
[327685050,1716315069379,-634.91,0.00030958,6]
[327685051,1716315069389,-1184.99,0.00030958,6]
[327685052,1716315069405,-500.0,0.00030958,6]
[327685053,1716315069414,-903.98,0.00030958,6]
[327685054,1716315069424,-1072.41,0.00030958,6]
[327685055,1716315069433,-1804.49,0.00030958,6]
[327685056,1716315069444,-3063.68,0.00030958,6]
[327685057,1716315069455,-500.0,0.00030958,6]
[327685058,1716315069465,-500.0,0.00030958,6]
[327685059,1716315069475,-500.0,0.00030958,6]
[327685060,1716315069484,-500.0,0.00030958,6]
[327685061,1716315069494,-1983.39,0.00030958,6]
[327685062,1716315069503,-5140.19,0.00030958,6]
[327685063,1716315069514,-1169.05,0.00030958,6]
[327685064,1716315069524,-500.0,0.00030958,6]
[327685065,1716315069534,-531.12,0.00030958,6]
[327685066,1716315069543,-500.0,0.00030958,6]
[327685067,1716315069553,-3524.03,0.00030958,6]
[327685068,1716315069563,-151.0,0.00030958,7]
[327685069,1716315069573,-151.0,0.00030958,7]
[327685070,1716315069583,-2513.05,0.00030958,6]
[327685071,1716315069592,-151.0,0.00030958,7]
[327685072,1716315069602,-506.65,0.00030958,6]
[327685073,1716315069612,-500.0,0.00030958,6]
[327685074,1716315069622,-675.5,0.00030958,6]
[327685075,1716315069633,-805.73,0.00030958,6]
[327685076,1716315069642,-500.0,0.00030958,6]
[327685077,1716315069652,-415.6,0.00030962,2]
[327685078,1716315069663,-415.6,0.00030962,2]
[327685079,1716315069674,-415.6,0.00030962,2]
[327685080,1716315069684,-14898.75931736,0.0003109,2]
[327685081,1716315069696,-1000.0,0.00031129,2]
[327685082,1716315069705,-2868.0577244,0.00031131,2]
[327685083,1716315069716,-173.3787007,0.00031132,2]
[327685084,1716315069727,-196.98938459,0.00031222,2]
[327685085,1716315069736,-463.12008499,0.00031228,3]
[327685086,1716315069747,-502.44557333,0.00031232,6]
[327685087,1716315069758,-696.87,0.00031232,6]
[327685088,1716315069768,-500.0,0.00031232,6]
[327685089,1716315069779,-414.19,0.00031232,6]
[327685090,1716315069790,-500.0,0.00031232,6]
[327685091,1716315069800,-500.0,0.00031232,6]
[327685092,1716315069810,-546.71,0.00031232,6]
[327685093,1716315069821,-634.84,0.00031232,6]
[327685094,1716315069831,-458.59812674,0.00031232,6]
[327685095,1716315069841,-934.36,0.00031232,6]
[327685096,1716315069851,-500.0,0.00031232,6]
[327685097,1716315069862,-500.0,0.00031232,6]
[327685098,1716315069872,-500.0,0.00031232,6]
[327685099,1716315069883,-500.0,0.00031232,6]
[327685100,1716315069894,-500.0,0.00031232,6]
[327685101,1716315069905,-500.0,0.00031232,6]
[327685102,1716315069915,-500.0,0.00031232,6]
[327685103,1716315069926,-551.12,0.00031232,6]
[327685104,1716315069936,-500.0,0.00031232,6]
[327685105,1716315069948,-500.0,0.00031232,6]
[327685106,1716315069957,-500.0,0.00031232,6]
[327685107,1716315069966,-500.0,0.00031232,6]
[327685108,1716315069976,-560.96,0.00031232,6]
[327685109,1716315069986,-500.0,0.00031232,6]
[327685110,1716315069996,-500.0,0.00031232,6]
[327685111,1716315070006,-500.0,0.00031232,6]
[327685112,1716315070015,-500.0,0.00031232,6]
[327685113,1716315070025,-500.0,0.00031232,6]
[327685114,1716315070036,-783.78,0.00031232,6]
[327685115,1716315070046,-500.0,0.00031232,6]
[327685116,1716315070056,-500.0,0.00031232,6]
[327685117,1716315070066,-517.91,0.00031232,6]
[327685118,1716315070076,-575.81,0.00031232,6]
[327685119,1716315070086,-500.0,0.00031232,6]
[327685120,1716315070096,-500.0,0.00031232,6]
[327685121,1716315070106,-500.0,0.00031232,6]
[327685122,1716315070116,-567.71,0.00031232,6]
[327685123,1716315070126,-500.0,0.00031232,6]
[327685124,1716315070136,-500.0,0.00031232,6]
[327685125,1716315070146,-500.0,0.00031232,6]
[327685126,1716315070156,-500.0,0.00031232,6]
[327685127,1716315070166,-567.38,0.00031232,6]
[327685128,1716315070176,-562.07639291,0.00031232,6]
[327685129,1716315070186,-546.92,0.00031232,6]
[327685130,1716315070197,-500.0,0.00031232,6]
[327685131,1716315070207,-500.0,0.00031232,6]
[327685132,1716315070217,-500.0,0.00031232,6]
[327685133,1716315070227,-500.0,0.00031232,6]
[327685134,1716315070237,-895.68,0.00031232,6]
[327685135,1716315070247,-500.0,0.00031232,6]
[327685136,1716315070257,-500.0,0.00031232,6]
[327685137,1716315070267,-500.0,0.00031232,6]
[327685138,1716315070277,-500.0,0.00031232,6]
[327685139,1716315070287,-500.0,0.00031232,6]
[327685140,1716315070297,-500.0,0.00031232,6]
[327685141,1716315070308,-695.09,0.00031232,6]
[327685142,1716315070317,-500.0,0.00031232,6]
[327685143,1716315070327,-500.0,0.00031232,6]
[327685144,1716315070336,-803.74,0.00031232,6]
[327685145,1716315070346,-500.0,0.00031232,6]
[327685146,1716315070355,-550.58,0.00031232,6]
[327685147,1716315070365,-500.0,0.00031232,6]
[327685148,1716315070374,-1324.46,0.00031232,6]
[327685149,1716315070384,-500.0,0.00031232,6]
[327685150,1716315070397,-508.92,0.00031232,6]
[327685151,1716315070407,-500.0,0.00031232,6]
[327685152,1716315070417,-1127.04,0.00031232,6]
[327685153,1716315070427,-500.0,0.00031232,6]
[327685154,1716315070437,-500.0,0.00031232,6]
[327685155,1716315070448,-553.6,0.00031232,6]
[327685156,1716315070457,-500.0,0.00031232,6]
[327685157,1716315070467,-508.69,0.00031232,6]
[327685158,1716315070742,-500.0,0.00031232,6]
[327685159,1716315070753,-500.0,0.00031232,6]
[327685160,1716315070763,-500.0,0.00031232,6]
[327685161,1716315070786,-854.72,0.00031232,6]
[327685162,1716315070795,-500.0,0.00031232,6]
[327685163,1716315070805,-513.98,0.00031232,6]
[327685164,1716315070815,-500.0,0.00031232,6]
[327685165,1716315070825,-500.0,0.00031232,6]
[327685166,1716315070835,-500.0,0.00031232,6]
[327685167,1716315070844,-736.71,0.00031232,6]
[327685168,1716315070854,-479.1,0.00031232,6]
[327685169,1716315070863,-552.08,0.00031232,6]
[327685170,1716315070873,-500.0,0.00031232,6]
[327685171,1716315070883,-500.0,0.00031232,6]
[327685172,1716315070893,-793.61,0.00031232,6]
[327685173,1716315070902,-500.0,0.00031232,6]
[327685174,1716315070911,-500.0,0.00031232,6]
[327685175,1716315070921,-513.06,0.00031232,6]
[327685176,1716315070930,-907.61,0.00031232,6]
[327685177,1716315070941,-573.4,0.00031232,6]
[327685178,1716315070950,-963.1,0.00031232,6]
[327685179,1716315070960,-500.0,0.00031232,6]
[327685180,1716315070969,-725.45,0.00031232,6]
[327685181,1716315070978,-576.81690385,0.00031232,6]
[327685182,1716315070988,-500.0,0.00031232,6]
[327685183,1716315070997,-636.84,0.00031232,6]
[327685184,1716315071006,-1554.02,0.00031232,6]
[327685185,1716315071016,-500.0,0.00031232,6]
[327685186,1716315071025,-500.0,0.00031232,6]
[327685187,1716315071036,-561.59,0.00031232,6]
[327685188,1716315071046,-506.94,0.00031232,6]
[327685189,1716315071056,-441.89815031,0.00031232,6]
[327685190,1716315071065,-1320.38,0.00031232,6]
[327685191,1716315071075,-500.0,0.00031232,6]
[327685192,1716315071084,-540.72,0.00031232,6]
[327685193,1716315071094,-500.0,0.00031232,6]
[327685194,1716315071103,-548.73,0.00031232,6]
[327685195,1716315071113,-1068.62,0.00031232,6]
[327685196,1716315071123,-521.67,0.00031232,6]
[327685197,1716315071133,-603.82,0.00031232,6]
[327685198,1716315071142,-500.0,0.00031232,6]
[327685199,1716315071152,-1280.32,0.00031232,6]
[327685200,1716315071161,-500.0,0.00031232,6]
[327685201,1716315071171,-607.84,0.00031232,6]
[327685202,1716315071180,-547.54,0.00031232,6]
[327685203,1716315071192,-580.61,0.00031232,6]
[327685204,1716315071202,-763.1,0.00031232,6]
[327685205,1716315071211,-500.0,0.00031232,6]
[327685206,1716315071220,-500.0,0.00031232,6]
[327685207,1716315071230,-572.3,0.00031232,6]
[327685208,1716315071240,-732.1,0.00031232,6]
[327685209,1716315071249,-500.0,0.00031232,6]
[327685210,1716315071259,-842.07,0.00031232,6]
[327685211,1716315071268,-536.46,0.00031232,6]
[327685212,1716315071278,-814.64,0.00031232,6]
[327685213,1716315071288,-500.0,0.00031232,6]
[327685214,1716315071298,-500.0,0.00031232,6]
[327685215,1716315071308,-500.0,0.00031232,6]
[327685216,1716315071317,-506.08,0.00031232,6]
[327685217,1716315071327,-500.0,0.00031232,6]
[327685218,1716315071336,-866.48,0.00031232,6]
[327685219,1716315071346,-500.0,0.00031232,6]
[327685220,1716315071355,-617.97,0.00031232,6]
[327685221,1716315071365,-581.56,0.00031232,6]
[327685222,1716315071374,-500.0,0.00031232,6]
[327685223,1716315071383,-500.0,0.00031232,6]
[327685224,1716315071394,-1079.5,0.00031232,6]
[327685225,1716315071405,-502.51,0.00031232,6]
[327685226,1716315071415,-500.0,0.00031232,6]
[327685227,1716315071425,-626.88,0.00031232,6]
[327685228,1716315071435,-500.0,0.00031232,6]
[327685229,1716315071448,-500.0,0.00031232,6]
[327685230,1716315071457,-500.0,0.00031232,6]
[327685231,1716315071467,-500.0,0.00031232,6]
[327685232,1716315071478,-1512.56,0.00031232,6]
[327685233,1716315071489,-816.65,0.00031232,6]
[327685234,1716315071500,-965.24,0.00031232,6]
[327685235,1716315071509,-61.17640885,0.00031232,6]
[327685236,1716315072845,-421.67778162,0.00030402,2]
[327685237,1716315072857,-699.12,0.00030402,2]
[327685238,1716315072869,-685.15435114,0.00030402,2]
[327685239,1716315072881,-5018.97577797,0.00030402,2]
[327685240,1716315072891,-10936.93432799,0.00030408,4]
[327685241,1716315072900,-3792.23167181,0.00030408,4]
[327685249,1716316157118,-2639.68505268,0.00017158,2]
[327685250,1716316166105,-438.98492636,0.00017158,2]
[327685260,1716316233000,-1300.08001397,0.00017158,2]
[327685261,1716316233013,-700.94635198,0.00017158,2]
[327685262,1716316233023,-3006.86832271,0.00017159,2]
[327685263,1716316233034,-1119.61017729,0.00017159,2]
[327685264,1716316233044,-2363.61957271,0.00017259,2]
[327685265,1716316233055,-627.9273,0.00017259,2]
[327685266,1716316233066,-893.88077685,0.00017259,2]
[327685267,1716316233078,-463.7839458,0.00017259,2]
[327685268,1716316233372,-270.21773099,0.00017259,2]
[327685271,1716316233384,-695.86,0.00017259,2]
[327685272,1716316238825,-174.44,0.00013973,2]
[327685273,1716316238836,-3615.0558053,0.00017259,2]
[327685274,1716316238847,-6468.33018823,0.00017259,2]
[327685275,1716316239180,-9774.04788659,0.00017259,2]
[327685277,1716316239191,-3204.07920647,0.0001945,2]
[327685279,1716316239200,-231.7557,0.00021442,2]
[327685281,1716316239210,-314.74261016,0.00022806,2]
[327685283,1716316239230,-499.99,0.00022806,2]
[327685284,1716316239240,-4417.99,0.0002498,2]
[327685285,1716316239251,-5900.34,0.0002498,2]
[327685286,1716316239262,-6426.15,0.0002498,2]
[327685287,1716316239272,-715.0,0.000264,4]
[327685288,1716316239283,-315.28,0.00026731,2]
[327685289,1716316239294,-250.0,0.00028043,2]
[327685290,1716316239304,-150.25232363,0.0002833,2]
[327685291,1716316239314,-250.0,0.0002839,2]
[327685292,1716316239325,-156.97,0.00028892,2]
[327685293,1716316239335,-315.28,0.00028995,2]
[327685294,1716316239344,-537.18748957,0.00029039,2]
[327685295,1716316239356,-500.3132589,0.0003,2]
[327685296,1716316239365,-27658.0,0.0003,5]
[327685297,1716316239376,-21889.089,0.0003,2]
[327685298,1716316239386,-531.75392008,0.00030096,2]
[327685299,1716316239396,-17006.89997365,0.00030307,3]
[327685300,1716316239406,-15244.1329465,0.00030308,2]
[327685301,1716316239416,-2979.75186349,0.00030308,2]
[327685302,1716316239426,-155.84,0.00030363,2]
[327685303,1716316239436,-2912.5,0.000304,7]
[327685304,1716316239447,-142.73321168,0.00030408,4]
[327685305,1716316239456,-1227.04758271,0.00030408,4]
[327685306,1716316239467,-315.51961021,0.00030408,2]
[327685307,1716316239477,-155.0880062,0.00030408,4]
[327685308,1716316239487,-281.81285646,0.00030408,4]
[327685309,1716316239496,-14392.77409408,0.00030408,2]
[327685310,1716316239508,-19626.96507151,0.00030408,2]
[327685311,1716316239517,-445.76665903,0.00030408,4]
[327685312,1716316239526,-5900.0,0.00030408,10]
[327685313,1716316239537,-656.59256229,0.00030408,4]
[327685314,1716316239547,-403.66394371,0.00030408,4]
[327685315,1716316239556,-498.82985098,0.00030408,4]
[327685316,1716316239566,-281.88330445,0.00030408,4]
[327685317,1716316239576,-329.53898838,0.00030408,4]
[327685318,1716316239585,-607.56643044,0.00030409,4]
[327685319,1716316239595,-331.65549182,0.00030409,4]
[327685320,1716316239605,-1239.99423481,0.00030409,4]
[327685321,1716316239614,-339.58597213,0.00030409,2]
[327685322,1716316239624,-500.0,0.00030409,2]
[327685323,1716316239634,-487.70116253,0.00030409,2]
[327685324,1716316239643,-500.0,0.00030409,2]
[327685325,1716316239654,-500.0,0.00030409,2]
[327685326,1716316239663,-500.0,0.00030409,2]
[327685327,1716316239674,-500.0,0.00030409,2]
[327685328,1716316239684,-250.64637422,0.00030409,2]
[327685329,1716316239699,-446.72141582,0.0003041,6]
[327685330,1716316239710,-500.0,0.0003041,6]
[327685331,1716316239727,-500.0,0.0003041,6]
[327685332,1716316239737,-500.0,0.0003041,6]
[327685333,1716316239747,-500.0,0.0003041,6]
[327685334,1716316239758,-500.0,0.0003041,6]
[327685335,1716316239768,-500.0,0.0003041,6]
[327685336,1716316239779,-500.0,0.0003041,6]
[327685337,1716316239793,-500.0,0.0003041,6]
[327685338,1716316239803,-500.0,0.0003041,6]
[327685339,1716316239813,-500.0,0.0003041,6]
[327685340,1716316239824,-242.4706979,0.0003041,6]
[327685341,1716316239833,-500.0,0.0003041,6]
[327685342,1716316239843,-500.0,0.0003041,6]
[327685343,1716316239860,-500.0,0.0003041,6]
[327685344,1716316239871,-500.0,0.0003041,6]
[327685345,1716316239882,-500.0,0.0003041,6]
[327685346,1716316239892,-500.0,0.0003041,6]
[327685347,1716316239902,-669.78,0.0003041,6]
[327685348,1716316239912,-500.0,0.0003041,6]
[327685349,1716316239922,-500.0,0.0003041,6]
[327685350,1716316239932,-500.0,0.0003041,6]
[327685351,1716316239943,-500.0,0.0003041,6]
[327685352,1716316239953,-500.0,0.0003041,6]
[327685353,1716316239963,-500.0,0.0003041,6]
[327685354,1716316239973,-500.0,0.0003041,6]
[327685355,1716316239984,-661.34,0.0003041,6]
[327685356,1716316239993,-500.0,0.0003041,6]
[327685357,1716316240004,-500.0,0.0003041,6]
[327685358,1716316240014,-500.0,0.0003041,6]
[327685359,1716316240024,-500.0,0.0003041,6]
[327685360,1716316240034,-500.0,0.0003041,6]
[327685361,1716316240044,-500.0,0.0003041,6]
[327685362,1716316240054,-530.7,0.0003041,6]
[327685363,1716316240064,-500.0,0.0003041,6]
[327685364,1716316240074,-565.94532824,0.0003041,6]
[327685365,1716316240084,-500.0,0.0003041,6]
[327685366,1716316240093,-500.0,0.0003041,6]
[327685367,1716316240103,-500.0,0.0003041,6]
[327685368,1716316240113,-500.0,0.0003041,6]
[327685369,1716316240123,-500.0,0.0003041,6]
[327685370,1716316240132,-500.0,0.0003041,6]
[327685371,1716316240142,-500.0,0.0003041,6]
[327685372,1716316240152,-500.0,0.0003041,6]
[327685373,1716316240162,-500.0,0.0003041,6]
[327685374,1716316240173,-500.0,0.0003041,6]
[327685375,1716316240183,-500.0,0.0003041,6]
[327685376,1716316240194,-500.0,0.0003041,6]
[327685377,1716316240204,-899.59,0.0003041,6]
[327685378,1716316240213,-500.0,0.0003041,6]
[327685379,1716316240223,-208.42695442,0.0003041,6]
[327685380,1716316240233,-498.04710205,0.0003041,6]
[327685381,1716316240243,-500.0,0.0003041,6]
[327685382,1716316240254,-500.0,0.0003041,6]
[327685383,1716316240263,-500.0,0.0003041,6]
[327685384,1716316240275,-500.0,0.0003041,6]
[327685385,1716316240285,-500.0,0.0003041,6]
[327685386,1716316240295,-176.51970088,0.0003041,6]
[327685387,1716316240305,-293.93,0.0003041,6]
[327685388,1716316240315,-500.0,0.0003041,6]
[327685389,1716316240325,-500.0,0.0003041,6]
[327685390,1716316240335,-500.0,0.0003041,6]
[327685391,1716316240345,-526.21,0.0003041,6]
[327685392,1716316240355,-500.0,0.0003041,6]
[327685393,1716316240365,-561.17,0.0003041,6]
[327685394,1716316240376,-500.0,0.0003041,6]
[327685395,1716316240386,-500.0,0.0003041,6]
[327685396,1716316240396,-500.0,0.0003041,6]
[327685397,1716316240407,-502.17,0.0003041,6]
[327685398,1716316240417,-500.0,0.0003041,6]
[327685399,1716316240427,-500.0,0.0003041,6]
[327685400,1716316240436,-500.0,0.0003041,6]
[327685401,1716316240446,-500.0,0.0003041,6]
[327685402,1716316240455,-500.0,0.0003041,6]
[327685403,1716316240465,-500.0,0.0003041,6]
[327685404,1716316240476,-492.70567077,0.0003041,6]
[327685405,1716316240486,-642.2,0.0003041,6]
[327685406,1716316240496,-707.53,0.0003041,6]
[327685407,1716316240508,-534.68114443,0.0003041,6]
[327685408,1716316240518,-500.0,0.0003041,6]
[327685409,1716316240528,-500.0,0.0003041,6]
[327685410,1716316240538,-500.0,0.0003041,6]
[327685411,1716316240548,-636.68,0.0003041,6]
[327685412,1716316240557,-500.0,0.0003041,6]
[327685413,1716316240567,-500.0,0.0003041,6]
[327685414,1716316240577,-500.0,0.0003041,6]
[327685415,1716316240586,-500.0,0.0003041,6]
[327685416,1716316240596,-500.0,0.0003041,6]
[327685417,1716316240607,-507.5748738,0.0003041,6]
[327685418,1716316240617,-705.01,0.0003041,6]
[327685419,1716316240627,-500.0,0.0003041,6]
[327685420,1716316240636,-500.0,0.0003041,6]
[327685421,1716316240646,-685.81,0.0003041,6]
[327685422,1716316240656,-500.0,0.0003041,6]
[327685423,1716316240665,-548.36,0.0003041,6]
[327685424,1716316240675,-500.0,0.0003041,6]
[327685425,1716316240685,-500.0,0.0003041,6]
[327685426,1716316240695,-415.7464433,0.0003041,6]
[327685432,1716316241225,-84.2535567,0.0003041,6]
[327685433,1716316241235,-477.44144329,0.0003041,6]
[327685434,1716316241247,-96.11855671,0.0003041,6]
[327685435,1716316241260,-898.96,0.0003041,6]
[327685436,1716316241270,-500.0,0.0003041,6]
[327685437,1716316241280,-642.25,0.0003041,6]
[327685438,1716316241289,-500.0,0.0003041,6]
[327685439,1716316241300,-254.02678856,0.0003041,6]
[327685440,1716316241312,-245.97321144,0.0003041,6]
[327685441,1716316241322,-500.0,0.0003041,6]
[327685442,1716316241331,-816.76,0.0003041,6]
[327685443,1716316241340,-500.0,0.0003041,6]
[327685444,1716316241350,-500.0,0.0003041,6]
[327685445,1716316241360,-500.0,0.0003041,6]
[327685446,1716316241370,-1158.91,0.0003041,6]
[327685447,1716316241379,-500.0,0.0003041,6]
[327685448,1716316241389,-171.07536375,0.0003041,6]
[327685449,1716316241398,-500.0,0.0003041,6]
[327685450,1716316241408,-500.0,0.0003041,6]
[327685451,1716316241417,-500.0,0.0003041,6]
[327685452,1716316241426,-500.0,0.0003041,6]
[327685453,1716316241436,-500.0,0.0003041,6]
[327685454,1716316241445,-986.16,0.0003041,6]
[327685455,1716316241462,-500.0,0.0003041,6]
[327685456,1716316241475,-783.72,0.0003041,6]
[327685457,1716316241484,-500.0,0.0003041,6]
[327685458,1716316241494,-500.0,0.0003041,6]
[327685459,1716316241506,-508.59,0.0003041,6]
[327685460,1716316241515,-644.81,0.0003041,6]
[327685461,1716316241525,-500.0,0.0003041,6]
[327685462,1716316241534,-588.15,0.0003041,6]
[327685463,1716316241544,-500.0,0.0003041,6]
[327685464,1716316241553,-500.0,0.0003041,6]
[327685465,1716316241563,-522.18,0.0003041,6]
[327685466,1716316241573,-500.0,0.0003041,6]
[327685467,1716316241583,-500.0,0.0003041,6]
[327685468,1716316241592,-500.0,0.0003041,6]
[327685469,1716316241601,-500.0,0.0003041,6]
[327685470,1716316241611,-500.0,0.0003041,6]
[327685471,1716316241620,-498.36765287,0.0003041,6]
[327685473,1716316241953,-146.25234713,0.0003041,6]
[327685474,1716316241962,-275.09,0.0003041,6]
[327685475,1716316241972,-522.35424024,0.0003041,6]
[327685476,1716316241981,-500.0,0.0003041,6]
[327685477,1716316241991,-500.0,0.0003041,6]
[327685478,1716316242003,-500.0,0.0003041,6]
[327685479,1716316242013,-500.0,0.0003041,6]
[327685480,1716316242023,-500.0,0.0003041,6]
[327685481,1716316242033,-842.71,0.0003041,6]
[327685482,1716316242043,-505.05126809,0.0003041,2]
[327685483,1716316242052,-500.0,0.0003041,6]
[327685484,1716316242062,-500.0,0.0003041,6]
[327685485,1716316242071,-500.0,0.0003041,6]
[327685486,1716316242080,-234.42861446,0.0003041,6]
[327685487,1716316242092,-265.57138554,0.0003041,6]
[327685488,1716316242102,-35.49222283,0.0003041,6]
[327685493,1716316244408,-194.99367427,0.00030409,4]
[327685494,1716316244419,-464.50777717,0.0003041,6]
[327685495,1716316244429,-500.0,0.0003041,6]
[327685496,1716316244440,-1359.76,0.0003041,6]
[327685497,1716316244450,-747.88,0.0003041,6]
[327685498,1716316244460,-500.0,0.0003041,6]
[327685499,1716316244470,-500.0,0.0003041,6]
[327685500,1716316244480,-500.0,0.0003041,2]
[327685501,1716316244489,-217.22,0.0003041,6]
[327685502,1716316244499,-500.0,0.0003041,6]
[327685503,1716316244510,-500.0,0.0003041,6]
[327685504,1716316244519,-500.0,0.0003041,6]
[327685505,1716316244530,-500.0,0.0003041,6]
[327685506,1716316244540,-500.0,0.0003041,6]
[327685507,1716316244550,-500.0,0.0003041,6]
[327685508,1716316244559,-157.69122296,0.0003041,6]
[327685509,1716316244571,-342.30877704,0.0003041,6]
[327685510,1716316244581,-93.91449485,0.0003041,6]
[327685511,1716316244592,-700.23550515,0.0003041,6]
[327685512,1716316244602,-500.0,0.0003041,6]
[327685513,1716316244611,-340.06,0.0003041,6]
[327685514,1716316244620,-935.05,0.0003041,6]
[327685515,1716316244629,-634.77,0.0003041,6]
[327685516,1716316244641,-550.92,0.0003041,6]
[327685517,1716316244650,-500.0,0.0003041,6]
[327685518,1716316244659,-500.0,0.0003041,6]
[327685519,1716316244669,-500.0,0.0003041,6]
[327685520,1716316244679,-1120.28,0.0003041,6]
[327685521,1716316244688,-500.0,0.0003041,6]
[327685522,1716316244698,-500.0,0.0003041,6]
[327685523,1716316244707,-500.0,0.0003041,6]
[327685524,1716316244716,-520.02,0.0003041,6]
[327685525,1716316244726,-500.0,0.0003041,6]
[327685526,1716316244735,-500.0,0.0003041,6]
[327685527,1716316244746,-667.72,0.0003041,6]
[327685528,1716316244757,-500.0,0.0003041,6]
[327685529,1716316244766,-1155.33,0.0003041,6]
[327685530,1716316244775,-500.0,0.0003041,6]
[327685531,1716316244789,-673.67,0.0003041,6]
[327685532,1716316244798,-500.0,0.0003041,6]
[327685533,1716316244807,-500.0,0.0003041,6]
[327685534,1716316244817,-500.0,0.0003041,6]
[327685535,1716316244827,-500.0,0.0003041,6]
[327685536,1716316244836,-500.0,0.0003041,6]
[327685537,1716316244845,-712.81,0.0003041,6]
[327685538,1716316244855,-500.0,0.0003041,6]
[327685539,1716316244866,-528.34,0.0003041,6]
[327685540,1716316244876,-448.244857,0.0003041,6]
[327685541,1716316244885,-561.59,0.0003041,6]
[327685542,1716316244895,-360.8719957,0.0003041,6]
[327685543,1716316244905,-895.9,0.0003041,6]
[327685544,1716316244914,-500.0,0.0003041,6]
[327685545,1716316244923,-500.0,0.0003041,6]
[327685546,1716316244934,-500.0,0.0003041,6]
[327685547,1716316244943,-500.0,0.0003041,6]
[327685548,1716316244953,-500.0,0.0003041,6]
[327685549,1716316244964,-500.0,0.0003041,6]
[327685550,1716316244974,-531.86,0.0003041,6]
[327685551,1716316244983,-500.0,0.0003041,6]
[327685552,1716316244993,-508.03,0.0003041,6]
[327685553,1716316245003,-500.0,0.0003041,6]
[327685554,1716316245013,-714.57,0.0003041,6]
[327685555,1716316245023,-500.0,0.0003041,6]
[327685556,1716316245032,-640.59,0.0003041,6]
[327685557,1716316245044,-736.81,0.0003041,6]